fUST/lending_fUST_20260116
["ID","MTS","AMOUNT","RATE_DAILY","PERIOD"]
[402137659,1768543841654,-1500.0,0.00014795,2]
[402137660,1768543841665,-1500.0,0.00014795,2]
[402137661,1768543841677,-1201.29172815,0.00014795,2]
[402137662,1768543841689,-201.20977606,0.00014795,2]
[402137663,1768543841707,-1500.0,0.00014795,2]
[402137664,1768543841721,-243.42946379,0.00014795,2]
[402137665,1768543841735,-1500.0,0.00014795,2]
[402137666,1768543841750,-1004.04282277,0.00014916,2]
[402137667,1768543841762,-1085.06424983,0.00014916,2]
[402137668,1768543841773,-2000.0,0.00014916,2]
[402137669,1768543841785,-846.50941458,0.00014966,2]
[402137670,1768543841798,-353.39216906,0.00015337,2]
[402137671,1768543841811,-891.24466261,0.00015342,2]
[402137672,1768543841824,-606.16105087,0.00015342,2]
[402137673,1768543841837,-2066.58649571,0.00015342,2]
[402137674,1768543841850,-500.0,0.00015342,2]
[402137675,1768543841862,-2000.0,0.00015342,2]
[402137676,1768543841875,-2500.0,0.00015464,2]
[402137677,1768543841888,-151.0,0.000155,2]
[402137678,1768543841901,-500.0,0.00015748,2]
[402137679,1768543841914,-901.60735931,0.00015749,30]
[402137680,1768543841938,-523.05675553,0.00015749,30]
[402137681,1768543841957,-190.0,0.00015749,30]
[402137682,1768543841973,-499.3,0.00015749,30]
[402137683,1768543841988,-500.0,0.00015749,30]
[402137684,1768543842004,-500.0,0.00015749,30]
[402137685,1768543842021,-500.0,0.00015749,30]
[402137686,1768543842035,-500.0,0.00015749,30]
[402137687,1768543842051,-500.0,0.00015749,30]
[402137688,1768543842063,-791.6929879,0.00015749,30]
[402137689,1768543842074,-500.0,0.00015749,30]
[402137690,1768543842086,-500.0,0.00015749,30]
[402137691,1768543842100,-500.0,0.00015749,30]
[402137692,1768543842115,-500.0,0.00015749,30]
[402137693,1768543842129,-500.0,0.00015749,30]
[402137694,1768543842143,-500.0,0.00015749,30]
[402137695,1768543842158,-500.0,0.00015749,30]
[402137696,1768543842174,-500.0,0.00015749,30]
[402137697,1768543842190,-500.0,0.00015749,30]
[402137698,1768543842205,-500.0,0.00015749,30]
[402137699,1768543842220,-500.0,0.00015749,30]
[402137700,1768543842235,-500.0,0.00015749,30]
[402137701,1768543842248,-500.0,0.00015749,30]
[402137702,1768543842259,-500.0,0.00015749,30]
[402137703,1768543842270,-500.0,0.00015749,30]
[402137704,1768543842282,-500.0,0.00015749,30]
[402137705,1768543842294,-500.0,0.00015749,30]
[402137706,1768543842308,-500.0,0.00015749,30]
[402137707,1768543842323,-500.0,0.00015749,30]
[402137708,1768543842337,-500.0,0.00015749,30]
[402137709,1768543842349,-500.0,0.00015749,30]
[402137710,1768543842361,-500.0,0.00015749,30]
[402137711,1768543842373,-500.0,0.00015749,30]
[402137712,1768543842385,-500.0,0.00015749,30]
[402137713,1768543842401,-500.0,0.00015749,30]
[402137714,1768543842415,-500.0,0.00015749,30]
[402137715,1768543842426,-500.0,0.00015749,30]
[402137716,1768543842438,-500.0,0.00015749,30]
[402137717,1768543842449,-500.0,0.00015749,30]
[402137718,1768543842461,-500.0,0.00015749,30]
[402137719,1768543842474,-500.0,0.00015749,30]
[402137720,1768543842487,-500.0,0.00015749,30]
[402137721,1768543842500,-500.0,0.00015749,30]
[402137722,1768543842513,-500.0,0.00015749,30]
[402137723,1768543842527,-500.0,0.00015749,30]
[402137724,1768543842540,-500.0,0.00015749,30]
[402137725,1768543842553,-500.0,0.00015749,30]
[402137726,1768543842565,-500.0,0.00015749,30]
[402137727,1768543842579,-500.0,0.00015749,30]
[402137728,1768543842591,-500.0,0.00015749,30]
[402137729,1768543842604,-499.3,0.00015749,30]
[402137730,1768543842617,-500.0,0.00015749,30]
[402137731,1768543842631,-500.0,0.00015749,30]
[402137732,1768543842644,-500.0,0.00015749,30]
[402137733,1768543842657,-500.0,0.00015749,30]
[402137734,1768543842669,-500.0,0.00015749,30]
[402137735,1768543842694,-500.0,0.00015749,30]
[402137736,1768543842706,-500.0,0.00015749,30]
[402137737,1768543842719,-516.97362818,0.00015749,30]
[402137738,1768543842731,-500.0,0.00015749,30]
[402137739,1768543842744,-500.0,0.00015749,30]
[402137740,1768543842756,-500.0,0.00015749,30]
[402137741,1768543842768,-500.0,0.00015749,30]
[402137742,1768543842781,-500.0,0.00015749,30]
[402137743,1768543842793,-500.0,0.00015749,30]
[402137744,1768543842805,-500.0,0.00015749,30]
[402137745,1768543842817,-500.0,0.00015749,30]
[402137746,1768543842829,-500.0,0.00015749,30]
[402137747,1768543842841,-500.0,0.00015749,30]
[402137748,1768543842853,-500.0,0.00015749,30]
[402137749,1768543842865,-500.0,0.00015749,30]
[402137750,1768543842877,-500.0,0.00015749,30]
[402137751,1768543842889,-500.0,0.00015749,30]
[402137752,1768543842901,-500.0,0.00015749,30]
[402137753,1768543842913,-891.0,0.0001578,2]
[402137754,1768543842925,-151.0,0.000158,2]
[402137755,1768543842938,-2500.0,0.0001589,2]
[402137756,1768543842950,-100000.0,0.0001599,2]
[402137757,1768543842962,-3000.0,0.00016,2]
[402137758,1768543842974,-3000.0,0.0001601,2]
[402137759,1768543842987,-3000.0,0.00016012,2]
[402137760,1768543842998,-475.8562598,0.00016019,2]
[402137761,1768543843010,-3000.0,0.0001602,2]
[402137762,1768543843022,-3000.0,0.0001603,2]
[402137763,1768543843034,-258.573683,0.0001603,2]
[402137764,1768543843046,-3000.0,0.0001604,2]
[402137765,1768543843058,-4604.235543,0.0001605,2]
[402137766,1768543843070,-846.50941458,0.00016334,2]
[402137767,1768543843082,-151.0,0.000164,2]
[402137768,1768543843093,-302.5,0.00016438,2]
[402137769,1768543843105,-164.33129574,0.00016438,2]
[402137770,1768543843119,-3000.0,0.00016438,2]
[402137771,1768543843132,-200.10020518,0.00016473,2]
[402137772,1768543843143,-151.0,0.000165,2]
[402137773,1768543843156,-3500.0,0.0001656,2]
[402137774,1768543843168,-1041.66666667,0.00016634,2]
[402137775,1768543843179,-6180.6674,0.00016986,7]
[402137776,1768543843192,-3500.0,0.00016986,2]
[402137777,1768543843203,-151.0,0.00017,2]
[402137778,1768543843213,-268.080288,0.00017,7]
[402137779,1768543843224,-302.5,0.00017086,2]
[402137780,1768543843235,-670.200723,0.00017108,7]
[402137781,1768543843246,-1005.66172212,0.00017108,2]
[402137782,1768543843256,-3728.04955627,0.00017108,2]
[402137783,1768543843267,-151.0,0.000173,2]
[402137784,1768543843278,-394.69774726,0.00017337,2]
[402137785,1768543843289,-5000.0,0.00017412,2]
[402137786,1768543843300,-5454.767652,0.00017412,7]
[402137787,1768543843312,-2513.63240842,0.00017534,2]
[402137788,1768543843323,-621.35825938,0.00017548,17]
[402137789,1768543843334,-151.0,0.000176,2]
[402137790,1768543843346,-846.50941458,0.00017702,2]
[402137791,1768543843357,-302.5,0.00017733,2]
[402137792,1768543843368,-621.35825938,0.00017988,19]
[402137793,1768543843379,-151.0,0.000182,2]
[402137794,1768543843390,-151.0,0.000182,2]
[402137795,1768543843401,-164.322877,0.00018228,2]
[402137796,1768543843413,-715.0,0.00018343,2]
[402137797,1768543843425,-198.478,0.00018343,2]
[402137798,1768543843437,-417.0,0.00018343,2]
[402137799,1768543843448,-13636.91913,0.00018364,7]
[402137800,1768543843460,-1675.501806,0.00018381,7]
[402137801,1768543843471,-302.5,0.00018381,2]
[402137802,1768543843484,-621.35825938,0.00018428,20]
[402137803,1768543843496,-475.0,0.00018441,2]
[402137804,1768543843508,-475.0,0.00018441,2]
[402137805,1768543843520,-475.0,0.00018441,2]
[402137806,1768543843532,-475.0,0.00018441,2]
[402137807,1768543843544,-475.0,0.00018441,2]
[402137808,1768543843556,-475.0,0.00018441,2]
[402137809,1768543843568,-475.0,0.00018441,2]
[402137810,1768543843581,-475.0,0.00018441,2]
[402137811,1768543843593,-475.0,0.00018441,2]
[402137812,1768543843604,-475.0,0.00018441,2]
[402137813,1768543843615,-475.0,0.00018441,2]
[402137814,1768543843627,-475.0,0.00018441,2]
[402137815,1768543843640,-475.0,0.00018441,2]
[402137816,1768543843652,-475.0,0.00018441,2]
[402137817,1768543843664,-475.0,0.00018441,2]
[402137818,1768543843677,-475.0,0.00018441,2]
[402137819,1768543843689,-475.0,0.00018441,2]
[402137820,1768543843701,-475.0,0.00018441,2]
[402137821,1768543843713,-475.0,0.00018441,2]
[402137822,1768543843726,-475.0,0.00018591,2]
[402137823,1768543843739,-2060.41,0.00018596,2]
[402137824,1768543843751,-295.43657977,0.00018623,2]
[402137825,1768543843763,-1000.0,0.00018623,2]
[402137826,1768543843776,-250.0,0.00018623,2]
[402137827,1768543843788,-2597.2162153,0.00018623,2]
[402137828,1768543843800,-1000.0,0.00018623,2]
[402137829,1768543843812,-250.0,0.00018623,2]
[402137830,1768543843824,-1000.0,0.00018623,2]
[402137831,1768543843837,-250.0,0.00018623,2]
[402137832,1768543843849,-1000.0,0.00018623,2]
[402137833,1768543843862,-250.0,0.00018623,2]
[402137834,1768543843874,-445.202766,0.00018623,2]
[402137835,1768543843887,-151.0,0.00018623,2]
[402137836,1768543843899,-1000.0,0.00018623,2]
[402137837,1768543843911,-250.0,0.00018623,2]
[402137838,1768543843923,-151.0,0.00018623,2]
[402137839,1768543843935,-1000.0,0.00018623,2]
[402137840,1768543843947,-250.0,0.00018623,2]
[402137841,1768543843958,-151.0,0.00018623,2]
[402137842,1768543843971,-1000.0,0.00018623,2]
[402137843,1768543843983,-250.0,0.00018623,2]
[402137844,1768543843994,-151.0,0.00018623,2]
[402137845,1768543844006,-1000.0,0.00018623,2]
[402137846,1768543844017,-250.0,0.00018623,2]
[402137847,1768543844029,-151.0,0.00018623,2]
[402137848,1768543844041,-1000.0,0.00018623,2]
[402137849,1768543844054,-2150.738,0.00018623,2]
[402137850,1768543844066,-151.0,0.00018623,2]
[402137851,1768543844078,-1000.0,0.00018623,2]
[402137852,1768543844091,-151.0,0.00018623,2]
[402137853,1768543844105,-250.0,0.00018623,2]
[402137854,1768543844116,-1000.0,0.00018623,2]
[402137855,1768543844131,-151.0,0.00018623,2]
[402137856,1768543844143,-251.71795936,0.00018623,2]
[402137857,1768543844156,-1000.0,0.00018623,2]
[402137858,1768543844168,-151.0,0.00018623,2]
[402137859,1768543844181,-1000.0,0.00018623,2]
[402137860,1768543844192,-151.0,0.00018623,2]
[402137861,1768543844204,-162.380719,0.00018623,2]
[402137862,1768543844216,-1000.0,0.00018623,2]
[402137863,1768543844228,-151.0,0.00018623,2]
[402137864,1768543844239,-151.0,0.00018623,2]
[402137865,1768543844252,-168.3888056,0.00018623,2]
[402137866,1768543844264,-1000.0,0.00018623,2]
[402137867,1768543844276,-151.0,0.00018623,2]
[402137868,1768543844288,-151.0,0.00018623,2]
[402137869,1768543844300,-174.61919141,0.00018623,2]
[402137870,1768543844313,-1000.0,0.00018623,2]
[402137871,1768543844324,-151.0,0.00018623,2]
[402137872,1768543844335,-151.0,0.00018623,2]
[402137873,1768543844347,-181.08010149,0.00018623,2]
[402137874,1768543844358,-1000.0,0.00018623,2]
[402137875,1768543844370,-151.0,0.00018623,2]
[402137876,1768543844384,-187.78006525,0.00018623,2]
[402137877,1768543844396,-151.0,0.00018623,2]
[402137878,1768543844408,-1000.0,0.00018623,2]
[402137879,1768543844421,-151.0,0.00018623,2]
[402137880,1768543844433,-1957.856,0.00018623,2]
[402137881,1768543844446,-194.72792766,0.00018623,2]
[402137882,1768543844459,-151.0,0.00018623,2]
[402137883,1768543844471,-151.0,0.00018623,2]
[402137884,1768543844483,-151.0,0.00018623,2]
[402137885,1768543844496,-201.93286099,0.00018623,2]
[402137886,1768543844508,-151.0,0.00018623,2]
[402137887,1768543844520,-151.0,0.00018623,2]
[402137888,1768543844532,-151.0,0.00018623,2]
[402137889,1768543844545,-209.40437684,0.00018623,2]
[402137890,1768543844557,-151.0,0.00018623,2]
[402137891,1768543844568,-151.0,0.00018623,2]
[402137892,1768543844580,-151.0,0.00018623,2]
[402137893,1768543844593,-217.15233878,0.00018623,2]
[402137894,1768543844604,-151.0,0.00018623,2]
[402137895,1768543844617,-151.0,0.00018623,2]
[402137896,1768543844629,-151.0,0.00018623,2]
[402137897,1768543844641,-250.0,0.00018623,2]
[402137898,1768543844653,-225.18697532,0.00018623,2]
[402137899,1768543844669,-151.0,0.00018623,2]
[402137900,1768543844681,-151.0,0.00018623,2]
[402137901,1768543844693,-151.0,0.00018623,2]
[402137902,1768543844706,-170.4789278,0.00018623,2]
[402137903,1768543844719,-233.51889341,0.00018623,2]
[402137904,1768543844732,-151.0,0.00018623,2]
[402137905,1768543844744,-30000.0,0.00018623,2]
[402137906,1768543844757,-151.0,0.00018623,2]
[402137907,1768543844769,-151.0,0.00018623,2]
[402137908,1768543844781,-242.15909246,0.00018623,2]
[402137909,1768543844792,-151.0,0.00018623,2]
[402137910,1768543844804,-151.0,0.00018623,2]
[402137911,1768543844815,-251.11897888,0.00018623,2]
[402137912,1768543844827,-151.0,0.00018623,2]
[402137913,1768543844839,-151.0,0.00018623,2]
[402137914,1768543844850,-260.4103811,0.00018623,2]
[402137915,1768543844862,-151.0,0.00018623,2]
[402137916,1768543844874,-151.0,0.00018623,2]
[402137917,1768543844885,-270.0455652,0.00018623,2]
[402137918,1768543844897,-151.0,0.00018623,2]
[402137919,1768543844909,-151.0,0.00018623,2]
[402137920,1768543844920,-280.03725112,0.00018623,2]
[402137921,1768543844932,-151.0,0.00018623,2]
[402137922,1768543844943,-151.0,0.00018623,2]
[402137923,1768543844956,-151.0,0.00018623,2]
[402137924,1768543844968,-290.39862941,0.00018623,2]
[402137925,1768543844979,-151.0,0.00018623,2]
[402137926,1768543844991,-242.73673634,0.00018623,2]
[402137927,1768543845003,-151.0,0.00018623,2]
[402137928,1768543845014,-301.1433787,0.00018623,2]
[402137929,1768543845025,-151.0,0.00018623,2]
[402137930,1768543845036,-151.0,0.00018623,2]
[402137931,1768543845047,-151.0,0.00018623,2]
[402137932,1768543845059,-151.0,0.00018623,2]
[402137933,1768543845070,-151.0,0.00018623,2]
[402137934,1768543845082,-250.0,0.00018623,2]
[402137935,1768543845093,-201.00054159,0.00018623,2]
[402137936,1768543845104,-250.0,0.00018623,2]
[402137937,1768543845118,-250.0,0.00018623,2]
[402137938,1768543845130,-250.0,0.00018623,2]
[402137939,1768543845141,-250.0,0.00018623,2]
[402137940,1768543845153,-250.0,0.00018623,2]
[402137941,1768543845164,-250.0,0.00018623,2]
[402137942,1768543845175,-250.0,0.00018623,2]
[402137943,1768543845188,-250.0,0.00018623,2]
[402137944,1768543845199,-2000.0,0.00018623,2]
[402137945,1768543845210,-250.0,0.00018623,2]
[402137946,1768543845221,-328.72476139,0.00018623,2]
[402137947,1768543845232,-2000.0,0.00018623,2]
[402137948,1768543845243,-2030.296672,0.00018678,2]
[402137951,1768543845749,-151.0,0.000187,2]
[402137952,1768543845782,-2105.41764886,0.00018733,2]
[402137953,1768543845803,-2183.31810187,0.00018788,2]
[402137955,1768543845817,-1000.0,0.00018836,2]
[402137956,1768543845827,-1000.0,0.00018836,2]
[402137957,1768543845837,-1000.0,0.00018836,2]
[402137958,1768543845846,-2264.10087164,0.00018843,2]
[402137959,1768543845856,-728.0,0.00018851,2]
[402137960,1768543845866,-5000.0,0.00018863,2]
[402137961,1768543845876,-621.35825938,0.00018868,22]
[402137962,1768543845886,-2000.0,0.00018868,2]
[402137963,1768543845895,-2000.0,0.00018868,2]
[402137964,1768543845905,-2000.0,0.00018868,2]
[402137965,1768543845915,-2000.0,0.00018868,2]
[402137967,1768543845924,-2000.0,0.00018868,2]
[402137968,1768543845934,-609.84,0.00018868,2]
[402137969,1768543845944,-2347.87260389,0.00018898,2]
[402137970,1768543845955,-303.10001603,0.000189,2]
[402137971,1768543845965,-732.0,0.00018939,2]
[402137972,1768543845974,-2434.74389024,0.00018953,2]
[402137973,1768543845983,-2524.82941417,0.00019008,2]
[402137974,1768543845993,-728.0,0.00019024,2]
[402137975,1768543846003,-302.5,0.00019029,2]
[402137976,1768543846013,-2618.2481025,0.00019063,2]
[402137977,1768543846023,-846.50941458,0.0001907,2]
[402137978,1768543846034,-303.10001603,0.00019089,2]
[402137979,1768543846044,-151.0,0.000191,2]
[402137980,1768543846053,-2715.12328229,0.00019118,2]
[402137981,1768543846064,-728.0,0.00019156,2]
[402137982,1768543846076,-200.0,0.00019168,2]
[402137983,1768543846085,-364672.32955697,0.00019169,2]
[402137984,1768543846094,-204.50561505,0.0001917,2]
[402137985,1768543846104,-461.67526834,0.00019171,2]
[402137986,1768543846116,-2230.315306,0.00019171,2]
[402137987,1768543846126,-31110.0,0.00019171,2]
[402137988,1768543846136,-460.96661207,0.00019173,2]
[402137989,1768543846146,-1000.0,0.00019178,2]
[402137990,1768543846156,-1000.0,0.00019178,2]
[402137991,1768543846165,-2536.6217,0.00019178,2]
[402137992,1768543846175,-1045.54,0.00019178,2]
[402137993,1768543846185,-176.09,0.00019178,2]
[402137994,1768543846195,-1000.0,0.00019178,2]
[402137995,1768543846204,-1000.0,0.00019178,2]
[402137996,1768543846213,-1354.67,0.00019178,2]
[402137997,1768543846222,-1354.67,0.00019178,2]
[402137998,1768543846232,-1354.67,0.00019178,2]
[402137999,1768543846241,-1354.67,0.00019178,2]
[402138000,1768543846251,-1354.67,0.00019178,2]
[402138001,1768543846260,-1354.67,0.00019178,2]
[402138002,1768543846270,-1354.67,0.00019178,2]
[402138003,1768543846279,-1354.67,0.00019178,2]
[402138004,1768543846289,-1354.67,0.00019178,2]
[402138005,1768543846298,-1354.67,0.00019178,2]
[402138006,1768543846307,-1354.67,0.00019178,2]
[402138007,1768543846317,-1354.67,0.00019178,2]
[402138008,1768543846326,-1354.67,0.00019178,2]
[402138009,1768543846336,-1354.67,0.00019178,2]
[402138010,1768543846345,-1354.67,0.00019178,2]
[402138011,1768543846354,-1354.67,0.00019178,2]
[402138012,1768543846364,-1354.67,0.00019178,2]
[402138013,1768543846374,-1354.67,0.00019178,2]
[402138014,1768543846384,-251.069732,0.00019178,7]
[402138015,1768543846399,-151.0,0.00019178,2]
[402138016,1768543846410,-1796.040967,0.00019178,2]
[402138017,1768543846419,-1796.040967,0.00019178,2]
[402138018,1768543846428,-1796.040967,0.00019178,2]
[402138019,1768543846437,-1796.040967,0.00019178,2]
[402138020,1768543846447,-1796.040967,0.00019178,2]
[402138021,1768543846456,-1796.040967,0.00019178,2]
[402138022,1768543846466,-1796.040967,0.00019178,2]
[402138024,1768543846475,-1796.040967,0.00019178,2]
[402138025,1768543846484,-1796.040967,0.00019178,2]
[402138026,1768543846493,-1796.040967,0.00019178,2]
[402138027,1768543846502,-1796.040967,0.00019178,2]
[402138028,1768543846514,-1796.040967,0.00019178,2]
[402138029,1768543846534,-1796.040967,0.00019178,2]
[402138030,1768543846544,-1796.040967,0.00019178,2]
[402138031,1768543846553,-1796.040967,0.00019178,2]
[402138032,1768543846562,-1796.040967,0.00019178,2]
[402138033,1768543846571,-208.52,0.000192,2]
[402138034,1768543846580,-176.42,0.000192,2]
[402138035,1768543846590,-167.99,0.000192,2]
[402138036,1768543846599,-303.10001603,0.00019278,2]
[402138037,1768543846609,-779.0,0.000193,2]
[402138038,1768543846618,-621.35825938,0.00019308,23]
[402138039,1768543846627,-151.144,0.00019309,2]
[402138040,1768543846637,-436.00332547,0.00019337,2]
[402138041,1768543846646,-1354.67,0.00019343,2]
[402138042,1768543846655,-728.0,0.00019344,2]
[402138043,1768543846665,-150.19,0.00019358,2]
[402138044,1768543846674,-1740.0,0.00019358,2]
[402138045,1768543846683,-1354.67,0.00019367,2]
[402138046,1768543846693,-1354.67,0.00019367,2]
[402138047,1768543846702,-1354.67,0.00019367,2]
[402138048,1768543846711,-1354.67,0.00019367,2]
[402138049,1768543846720,-1354.80968696,0.00019367,2]
[402138050,1768543846729,-3344.228216,0.00019367,7]
[402138051,1768543846738,-194.2841096,0.00019397,2]
[402138052,1768543846748,-151.0,0.000194,2]
[402138053,1768543846757,-194.2841096,0.00019425,2]
[402138054,1768543846766,-728.0,0.00019437,2]
[402138055,1768543846775,-150.199,0.00019462,2]
[402138056,1768543846784,-247.570645,0.00019462,7]
[402138057,1768543846793,-1367.0,0.00019462,2]
[402138058,1768543846802,-2147.0,0.00019462,2]
[402138059,1768543846811,-629.0,0.00019462,2]
[402138060,1768543846820,-303.10001603,0.00019467,2]
[402138061,1768543846830,-728.0,0.00019491,2]
[402138062,1768543846840,-1796.040967,0.00019499,2]
[402138063,1768543846849,-1796.040967,0.00019499,2]
[402138064,1768543846859,-1796.040967,0.00019499,2]
[402138065,1768543846868,-1796.040966,0.00019499,2]
[402138066,1768543846878,-627.674331,0.00019523,7]
[402138067,1768543846887,-243.48264022,0.00019523,2]
[402138068,1768543846897,-2575.278083,0.00019534,7]
[402138069,1768543846906,-728.0,0.00019535,2]
[402138070,1768543846915,-3811.35994443,0.00019551,2]
[402138071,1768543846925,-1740.0,0.0001958,2]
[402138072,1768543846934,-800.0,0.00019584,2]
[402138073,1768543846944,-825.60837125,0.00019612,2]
[402138074,1768543846953,-800.0,0.00019652,2]
[402138075,1768543846962,-303.10001603,0.00019656,2]
[402138076,1768543846971,-800.0,0.00019664,2]
[402138077,1768543846980,-2000.0,0.00019674,7]
[402138078,1768543846990,-302.5,0.00019676,2]
[402138079,1768543846999,-478.75725327,0.00019719,2]
[402138080,1768543847008,-2312.83697232,0.00019719,2]
[402138081,1768543847017,-32261.07,0.00019719,2]
[402138082,1768543847026,-1505.526191,0.0001972,2]
[402138083,1768543847035,-1748.046,0.0001972,2]
[402138084,1768543847045,-800.0,0.00019731,2]
[402138085,1768543847054,-558.13326427,0.00019734,2]
[402138086,1768543847063,-800.0,0.00019745,2]
[402138087,1768543847073,-621.35825938,0.00019748,24]
[402138088,1768543847082,-646.25618565,0.00019756,2]
[402138089,1768543847091,-2585.02474258,0.00019756,2]
[402138090,1768543847100,-5816.30567082,0.00019756,2]
[402138091,1768543847113,-999.32818858,0.00019756,2]
[402138092,1768543847122,-3993.31544158,0.00019756,2]
[402138093,1768543847131,-800.0,0.00019781,2]
[402138094,1768543847140,-977.79949383,0.00019799,2]
[402138095,1768543847150,-3907.28677733,0.00019799,2]
[402138096,1768543847159,-151.0,0.000198,2]
[402138097,1768543847168,-1740.0,0.00019807,2]
[402138098,1768543847179,-800.0,0.00019813,2]
[402138099,1768543847188,-1740.0,0.00019837,2]
[402138100,1768543847196,-454.65002405,0.00019845,4]
[402138101,1768543847206,-7145.34542253,0.0001986,2]
[402138102,1768543847215,-1740.0,0.00019866,2]
[402138103,1768543847224,-3154.735365,0.00019899,2]
[402138104,1768543847233,-10133.5949524,0.00019899,2]
[402138105,1768543847242,-1581.731909,0.000199,5]
[402138106,1768543847250,-1000.0,0.0001992,5]
[402138107,1768543847260,-1000.0,0.0001994,5]
[402138108,1768543847269,-1049.6475633,0.0001995,2]
[402138109,1768543847278,-26947.64379474,0.0001995,2]
[402138110,1768543847748,-1637.54214461,0.0001995,2]
[402138111,1768543847759,-1879.21932739,0.0001995,2]
[402138112,1768543848152,-2000.0,0.00018623,2]
[402138113,1768543848161,-2000.0,0.00018623,2]
[402138114,1768543848171,-2000.0,0.00018623,2]
[402138115,1768543848180,-2000.0,0.00018623,2]
[402138116,1768543848189,-436.3271995,0.0001995,2]
[402138117,1768543848803,-1005.0,0.0001,6]
[402138118,1768543848813,-8354.66547109,0.00014839,2]
[402138119,1768543848822,-8354.66547109,0.00017331,2]
[402138120,1768543848832,-2000.0,0.00018623,2]
[402138121,1768543848841,-2000.0,0.00018623,2]
[402138122,1768543848851,-2000.0,0.00018623,2]
[402138123,1768543848860,-2036.17781661,0.00018623,2]
[402138124,1768543848869,-13392.99047138,0.0001995,2]
[402138159,1768544590029,462.07,8.899e-05,2]
[402138162,1768544669613,456.19,8.859e-05,2]
[402138167,1768544750938,450.38,8.89e-05,2]
[402138227,1768545038181,-133050.25242939,9.699e-05,2]
[402138229,1768545038190,-198.26677537,9.713e-05,2]
[402138230,1768545038199,-733.48,0.00010059,2]
[402138232,1768545038209,-1466.96,0.00010538,2]
[402138234,1768545038218,-2200.45,0.00011016,2]
[402138236,1768545038227,-2933.93,0.00011495,2]
[402138238,1768545038237,-233.95479494,0.00011713,2]
[402138240,1768545038246,-3667.41,0.00011974,2]
[402138242,1768545038256,-412.95238013,0.00012329,2]
[402138243,1768545038265,-4400.89,0.00012453,2]
[402138244,1768545038274,-160.0,0.000129,2]
[402138245,1768545038284,-5134.37,0.00012932,2]
[402138246,1768545038293,-506.52988688,0.00013273,2]
[402138247,1768545038302,-500.0,0.00013273,2]
[402138248,1768545038311,-504.63987932,0.00013273,2]
[402138249,1768545038321,-500.0,0.00013273,2]
[402138250,1768545038330,-5867.86,0.00013411,2]
[402138251,1768545038339,-169.30188294,0.00013599,2]
[402138252,1768545038348,-1000.0,0.00013699,2]
[402138253,1768545038358,-1145.868257,0.00013699,2]
[402138254,1768545038367,-500.0,0.00013699,2]
[402138255,1768545038376,-500.0,0.00013699,2]
[402138256,1768545038385,-269.6428145,0.00013713,2]
[402138257,1768545038395,-459.81748108,0.00013821,2]
[402138258,1768545038404,-6601.34,0.0001389,2]
[402138259,1768545038414,-160.0,0.000139,2]
[402138260,1768545038433,-160.0,0.000139,2]
[402138261,1768545038443,-501.15478693,0.00014,2]
[402138262,1768545038452,-1000.0,0.00014247,2]
[402138263,1768545038462,-502.90945713,0.00014247,2]
[402138264,1768545038471,-7334.82,0.00014369,2]
[402138265,1768545038482,-160.0,0.000149,2]
[402138266,1768545038492,-595.13344201,0.000149,2]
[402138267,1768545038501,-169.30188291,0.00014969,2]
[402138268,1768545038510,-1372.70791662,0.00015,3]
[402138269,1768545038519,-151.04375224,0.00015,2]